[Event "Super United Croatia GCT Blitz 2022"]
[Site "Zagreb"]
[Date "2022.07.23"]
[Round "6"]
[White "Vachier-Lagrave, Maxime"]
[Black "Van Foreest, Jorden"]
[Result "0-1"]
[ECO "A13"]
[WhiteElo "2760"]
[BlackElo "2678"]
[Annotator "TA"]
[PlyCount "91"]
[EventDate "2022.07.20"]
[EventType "tourn"]
[EventCountry "CRO"]
[SourceTitle "playchess.com"]
[Source "ChessBase"]
[SourceQuality "1"]
[TimeControl "300+2"]

{[%evp 9,91,14,46,19,24,37,34,29,48,49,62,22,25,17,13,24,22,23,30,18,18,25,26,36,35,30,27,36,48,39,43,26,104,45,93,93,102,32,27,14,26,15,24,17,38,31,34,42,38,24,18,15,29,17,37,32,27,32,44,45,45,43,48,37,39,22,26,25,49,41,28,25,24,0,0,-13,-6,-7,-5,-320,-283,-352,-464,-378]} 1. c4 {[%emt 0:00:01]} e6 {[%emt 0:00:02]} 2. g3 {[%emt 0:00:01]} d5 {[%emt 0:00:02]} 3. Bg2 {[%emt 0:00:01]} dxc4 {[%emt 0:00:09]} 4. Qa4+ {[%emt 0:00:05]} Nc6 {[%emt 0:00:01]} 5. Nf3 {[%emt 0:00:14]} Bd6 {[%emt 0:00:20] [#]} 6. Na3 $146 {[%emt 0:00:16] A13: English Opening: 1...e6.} ({Predecessor:} 6. Qxc4 Nge7 7. O-O O-O 8. d3 a6 9. Nbd2 b5 10. Qc2 Nb4 11. Qd1 Bb7 12. a3 {1-0 (35) Romanow,W (2114)-Fleischer,M (1939) Bad Sooden-Allendorf 2012}) 6... Bxa3 {[%emt 0:00:35]} 7. bxa3 {[%emt 0:00:02]} Nge7 {[%emt 0:00:02]} 8. Qxc4 {[%emt 0:00:03] White is slightly better.} O-O {[%emt 0:00:02]} 9. Bb2 {[%emt 0:00:01]} Qd6 {[%emt 0:00:53]} 10. O-O {[%emt 0:00:43]} e5 {[%emt 0:00:02]} 11. d4 {[%emt 0:00:01][%cal Rd4e5]} Be6 {[%emt 0:00:07] [#]} 12. dxe5 $1 {[%emt 0:00:09]} Bxc4 {[%emt 0:00:06]} 13. exd6 {[%emt 0:00:01]} cxd6 {[%emt 0:00:02]} 14. Rfe1 {[%emt 0:00:06]} Rac8 {[%emt 0:00:10]} 15. Nd2 $36 {[%emt 0:00:10][%mdl 2048] White is more active.} Bd5 {[%emt 0:00:06]} 16. Ne4 {[%emt 0:00:23]} Rfd8 {[%emt 0:00:24]} 17. Red1 {[%emt 0:00:03]} Bxe4 {[%emt 0:00:15]} 18. Bxe4 {[%emt 0:00:01]} d5 {[%emt 0:00:01]} 19. Bf3 {[%emt 0:00:29] A strong pair of Bishops.} f6 {[%emt 0:00:02]} 20. Bg4 {[%emt 0:00:05] Strongly threatening Be6+.} Rc7 {[%emt 0:00:04]} (20... f5 $11 21. Bf3 Na5) 21. Rac1 {[%emt 0:00:04]} (21. Be6+ $16 Kf8 22. Rac1) 21... Kf7 {[%emt 0:00:06]} (21... f5 $14 {might be stronger.} 22. Bf3 Rcd7) 22. e4 $16 {[%emt 0:00:12]} g6 {[%emt 0:00:25]} 23. exd5 {[%emt 0:00:34]} ({White should play} 23. Rc5 $16 {[%cal Re4d5]} h5 24. Bh3) 23... Rxd5 $14 {[%emt 0:00:13]} 24. Re1 {[%emt 0:00:02]} Rd6 {[%emt 0:00:08] Against Be6+} (24... Nf5 {looks sharper.} 25. Bf3 Rd2 26. Re2 Rd3) 25. Bd1 {[%emt 0:00:04]} Nf5 {[%emt 0:00:04]} 26. Kg2 {[%emt 0:00:12]} Re7 {[%emt 0:00:01]} 27. Bb3+ {[%emt 0:00:04]} Kg7 {[%emt 0:00:02]} 28. Rxe7+ {[%emt 0:00:07]} Nfxe7 {[%emt 0:00:01]} 29. Rd1 {[%emt 0:00:12]} Rxd1 {[%emt 0:00:02]} 30. Bxd1 $11 {[%emt 0:00:01][%mdl 4096] Endgame KBB-KNN} Ne5 {[%emt 0:00:05]} 31. Be2 {[%emt 0:00:06]} g5 {[%emt 0:00:07]} 32. f4 {[%emt 0:00:03]} gxf4 {[%emt 0:00:02]} 33. gxf4 {[%emt 0:00:00]} N5c6 {[%emt 0:00:28]} 34. Kf3 {[%emt 0:00:09]} Kg6 {[%emt 0:00:01]} 35. Bd3+ {[%emt 0:00:02]} f5 {[%emt 0:00:02]} 36. Bc4 {[%emt 0:00:06]} Nc8 {[%emt 0:00:07]} 37. a4 {[%emt 0:00:16]} Nd6 {[%emt 0:00:05]} 38. Bd5 {[%emt 0:00:20]} Nb4 {[%emt 0:00:03]} 39. Bb3 {[%emt 0:00:01] Threatens to win with Ba3.} Nc6 {[%emt 0:00:04]} 40. Ke3 {[%emt 0:00:22]} Ne4 {[%emt 0:00:15]} 41. Bd5 {[%emt 0:00:07]} Nc5 {[%emt 0:00:01]} 42. Bb3 {[%emt 0:00:06]} Nxb3 {[%emt 0:00:04]} 43. axb3 {[%emt 0:00:01]} Kh5 {[%emt 0:00:04] aiming for ...Kg4.} 44. Bf6 $2 {[%emt 0:00:07][%mdl 8192]} (44. Kf3 $1 $11) 44... Kg4 $19 {[%emt 0:00:02]} 45. h4 {[%emt 0:00:01] [#]} Nb4 $1 {[%emt 0:00:05] ...Nd5+ is the strong threat.} 46. Kd4 {[%emt 0:00:11] Inhibits Nd5.  Weighted Error Value: White=0.28 (precise) /Black=0.10 (very precise)} 0-1

[Event "Super United Croatia GCT Blitz 2022"]
[Site "Zagreb"]
[Date "2022.07.23"]
[Round "6"]
[White "Mamedyarov, Shakhriyar"]
[Black "Firouzja, Alireza"]
[Result "1/2-1/2"]
[ECO "D24"]
[WhiteElo "2759"]
[BlackElo "2793"]
[Annotator "TA"]
[PlyCount "141"]
[EventDate "2022.07.20"]
[EventType "tourn"]
[EventCountry "CRO"]
[SourceTitle "playchess.com"]
[Source "ChessBase"]
[SourceQuality "1"]
[TimeControl "300+2"]

{[%evp 9,141,12,28,34,27,36,43,25,41,33,45,33,40,0,7,5,20,3,29,15,49,40,52,3,14,13,10,10,2,0,27,20,30,-10,0,0,7,-16,10,15,13,-70,-68,-83,-87,-102,-62,-101,-98,-101,-91,-87,-102,-87,-93,-93,-91,-82,-41,-43,-30,-45,-52,-59,0,0,0,0,0,0,0,0,0,0,0,0,0,0,0,0,0,0,0,0,0,0,0,0,0,0,0,0,0,0,0,0,0,0,0,0,0,0,0,0,0,0,0,0,0,0,0,0,263,263,6406,0,0,0,0,0,0,0,0,0,0,0,0,0,0,0,0,0,0,0]} 1. d4 {[%emt 0:00:01] Krasenkow,Michal} Nf6 {[%emt 0:00:01]} 2. c4 {[%emt 0:00:00]} e6 {[%emt 0:00:00]} 3. Nf3 {[%emt 0:00:03]} d5 {[%emt 0:00:01]} 4. Nc3 {[%emt 0:00:02]} dxc4 {[%emt 0:00:03]} 5. e4 {[%emt 0:00:03][%cal Be2e4,Be4e5][%mdl 32]} b5 {[%emt 0:00:01]} (5... Bb4 $5 {[%cal Rf6e4]}) 6. e5 {[%emt 0:00:06] D24: Queen's Gambit Accepted: 3 Nf3 Nf6 4 Nc3.} Nd5 {[%emt 0:00:01]} 7. Nxb5 {[%emt 0:00:02]} Nb6 {[%emt 0:00:01]} 8. Be2 {[%emt 0:00:06] White is slightly better.} Nc6 {[%emt 0:00:01]} 9. O-O {[%emt 0:00:05]} Be7 {[%emt 0:00:01]} 10. Be3 {[%emt 0:00:04] 10.Qd2 is the hot move.} O-O {[%emt 0:00:03]} 11. Qc2 {[%emt 0:00:07]} Rb8 {[%emt 0:00:18] [#]} (11... Nb4 $5 {[%cal Rb4c2]} 12. Qe4 Qd5 $11) 12. Nc3 $146 {[%emt 0:00:12]} (12. Bxc4 $2 Nb4 13. Qc3 Nxc4 14. Qxc4 Ba6 $19) ({Predecessor:} 12. Qe4 Nb4 13. Qg4 Kh8 14. Qh5 Qe8 15. Na3 Ba6 16. Ng5 h6 17. Ne4 f5 18. exf6 Qxh5 19. Bxh5 gxf6 20. Bxh6 {½-½ (65) Krasenkow,M (2597)-Alekseenko,K (2699) Tornelo INT 2021 CBM 202 Extra [Krasenkow,Michal]}) 12... Nb4 {[%emt 0:00:29]} 13. Qd2 {[%emt 0:00:16]} Ba6 {[%emt 0:00:16][%cal Oc7c5]} 14. Rfc1 {[%emt 0:00:12]} N6d5 {[%emt 0:00:26]} 15. Nxd5 {[%emt 0:00:08]} Qxd5 {[%emt 0:00:11]} 16. b3 {[%emt 0:00:33]} (16. a3 $14 {was preferrable.} Nc6 17. Qc2) 16... cxb3 $11 {[%emt 0:00:09]} 17. Bxa6 {[%emt 0:00:19]} (17. Rxc7 Bxe2 18. Qxe2 Nc2 19. Rxc2 (19. Rxe7 $2 Nxa1 20. axb3 a5 $19) 19... bxc2 20. Qxc2 Rfc8 $19) 17... b2 {[%emt 0:00:16] [#]} 18. Qxb2 $1 {[%emt 0:00:02]} Nxa6 {[%emt 0:00:01][%cal Bb4a6,Ba6c7,Bc7d5,Bd5f4,Bf4e2][%mdl 32]} 19. Qe2 {[%emt 0:00:03]} Rb6 {[%emt 0:00:08]} 20. h3 {[%emt 0:00:18]} Rfb8 {[%emt 0:00:06]} 21. Qc4 {[%emt 0:00:05]} c6 {[%emt 0:00:30][%cal Bc7c6,Bc6c5][%mdl 32]} 22. Nd2 {[%emt 0:00:18]} Nc7 {[%emt 0:00:13]} 23. Nb3 {[%emt 0:00:07]} Qxc4 {[%emt 0:00:56]} 24. Rxc4 {[%emt 0:00:01]} Nd5 {[%emt 0:00:01]} 25. Bd2 {[%emt 0:00:03]} ({Better is} 25. Ra4 $11) 25... Ra6 $1 $15 {[%emt 0:00:05][%cal Ob8b3] Threatens to win with ...Rxb3!} 26. Na5 {[%emt 0:00:45]} c5 {[%emt 0:00:12]} 27. Rac1 {[%emt 0:00:20]} (27. dxc5 $2 Bd8 28. Ra4 Rb5 $19) 27... Rb2 {[%emt 0:00:22]} 28. Be1 {[%emt 0:00:05]} Nf4 {[%emt 0:00:06]} 29. R4c2 {[%emt 0:00:41] [#]} Ne2+ $1 {[%emt 0:00:06]} 30. Kf1 {[%emt 0:00:01]} Rxc2 {[%emt 0:00:02]} ({Much worse is} 30... Nxc1 $6 31. Rxb2 f5 32. exf6 gxf6 33. Rb7 $11) 31. Rxc2 {[%emt 0:00:01]} Nxd4 {[%emt 0:00:01]} 32. Rb2 {[%emt 0:00:02]} Rb6 {[%emt 0:00:02] Inhibits Rb8+.} 33. Bc3 {[%emt 0:00:08]} Bd8 {[%emt 0:00:33] ...Rxb2 is the strong threat.} 34. Rxb6 {[%emt 0:00:23]} Bxb6 {[%emt 0:00:02]} 35. Bxd4 {[%emt 0:00:02]} cxd4 {[%emt 0:00:01][%mdl 4096] Endgame KB-KN} 36. Nc4 {[%emt 0:00:03]} Bc5 {[%emt 0:00:09]} (36... g5 $15) 37. f4 $11 {[%emt 0:00:12]} d3 {[%emt 0:00:02]} 38. Nb2 {[%emt 0:00:02]} d2 {[%emt 0:00:06] White must now prevent ...Be3.} 39. Ke2 {[%emt 0:00:01] Against Be3} Bb4 {[%emt 0:00:02]} 40. Nc4 {[%emt 0:00:01]} Kf8 {[%emt 0:00:05]} 41. Nxd2 {[%emt 0:00:02]} Ke7 {[%emt 0:00:05]} 42. Ne4 {[%emt 0:00:02]} f5 {[%emt 0:00:02]} 43. exf6+ {[%emt 0:00:10]} gxf6 {[%emt 0:00:01]} 44. g4 {[%emt 0:00:01]} f5 {[%emt 0:00:02]} 45. Ng3 {[%emt 0:00:02]} Kf6 {[%emt 0:00:02]} 46. g5+ {[%emt 0:00:02]} Kf7 {[%emt 0:00:06]} 47. Kf3 {[%emt 0:00:02]} Bd6 {[%emt 0:00:03]} 48. Ne2 {[%emt 0:00:03]} e5 {[%emt 0:00:02]} 49. fxe5 {[%emt 0:00:02]} Bxe5 {[%emt 0:00:01]} 50. Nf4 {[%emt 0:00:03]} a5 {[%emt 0:00:02][%cal Ba7a5,Ba5a4,Ba4a3][%mdl 32]} 51. h4 {[%emt 0:00:01]} a4 {[%emt 0:00:02]} 52. h5 {[%emt 0:00:01]} Bd6 {[%emt 0:00:02]} 53. Ne2 {[%emt 0:00:02] Strongly threatening Nd4.} Be5 {[%emt 0:00:02] Prevents Nd4.} 54. Nc1 {[%emt 0:00:04]} Ke6 {[%emt 0:00:02]} 55. Nd3 {[%emt 0:00:01]} Bd6 {[%emt 0:00:01]} 56. Nb2 {[%emt 0:00:05]} a3 {[%emt 0:00:03]} 57. Nc4 {[%emt 0:00:01]} Be7 {[%emt 0:00:02]} 58. Kf4 {[%emt 0:00:01]} Bf8 {[%emt 0:00:03]} 59. Kf3 {[%emt 0:00:08]} Kd5 {[%emt 0:00:02]} 60. Ne3+ {[%emt 0:00:01]} Kd4 $2 {[%emt 0:00:04][%mdl 8192]} (60... Ke6 $11) 61. Nxf5+ $18 {[%emt 0:00:02]} Kc3 $2 {[%emt 0:00:00]} (61... Ke5 62. Kg4 Ke6 63. Nd4+ Kf7) 62. Ne3 $2 {[%emt 0:00:01]} ({Weaker is} 62. g6 hxg6 63. hxg6 Kb2 $11) (62. Ke2 $18 {Intending h6 and mate.} Kb4 63. h6 (63. g6 hxg6 64. hxg6 Kc3 $11)) 62... Kb2 $11 {[%emt 0:00:01] The position is equal.} 63. Nc4+ {[%emt 0:00:01]} Kxa2 {[%emt 0:00:01]} 64. Ke4 {[%emt 0:00:02]} Kb3 {[%emt 0:00:02]} 65. Nxa3 $1 {[%emt 0:00:01]} Kxa3 {[%emt 0:00:03] KB-KPP} 66. Kf5 {[%emt 0:00:01]} Be7 {[%emt 0:00:03]} 67. g6 {[%emt 0:00:07]} hxg6+ {[%emt 0:00:01]} 68. hxg6 {[%emt 0:00:01] White threatens g7 and mate.} Bf8 {[%emt 0:00:01]} 69. Kf6 {[%emt 0:00:01]} Bh6 {[%emt 0:00:01]} 70. g7 {[%emt 0:00:01]} Bxg7+ $1 {[%emt 0:00:01]} 71. Kxg7 {[%emt 0:00:01] Weighted Error Value: White=0.08 (flawless) /Black=0.16 (very precise)} 1/2-1/2

[Event "Super United Croatia GCT Blitz 2022"]
[Site "Zagreb"]
[Date "2022.07.23"]
[Round "6"]
[White "Dominguez Perez, Leinier"]
[Black "Topalov, Veselin"]
[Result "1/2-1/2"]
[ECO "C77"]
[WhiteElo "2754"]
[BlackElo "2728"]
[Annotator "TA"]
[PlyCount "136"]
[EventDate "2022.07.20"]
[EventType "tourn"]
[EventCountry "CRO"]
[SourceTitle "playchess.com"]
[Source "ChessBase"]
[SourceQuality "1"]
[TimeControl "300+2"]

{[%evp 10,136,0,6,0,-7,0,0,0,-15,0,-50,-3,-41,-4,-35,-13,-20,-11,-67,-10,-2,12,11,22,22,72,12,21,6,19,27,17,13,51,32,52,8,33,39,45,38,47,40,109,65,72,72,75,55,76,79,55,41,48,41,41,34,34,20,41,41,48,41,41,40,41,12,117,112,135,133,168,56,91,78,89,92,91,91,96,66,89,29,26,39,59,14,14,14,14,0,15,15,15,14,14,14,15,15,15,0,8,8,8,8,18,18,18,18,18,0,0,0,35,0,0,0,0,0,0,0,0,-8,0,0,0,-8,0]} 1. e4 {[%emt 0:00:01]} e5 {[%emt 0:00:01]} 2. Nf3 {[%emt 0:00:01]} Nc6 {[%emt 0:00:01]} 3. Bb5 {[%emt 0:00:01]} a6 {[%emt 0:00:01]} 4. Ba4 {[%emt 0:00:01]} Nf6 {[%emt 0:00:01]} 5. Nc3 {[%emt 0:00:02]} Bc5 {[%emt 0:00:25]} 6. O-O {[%emt 0:00:02]} O-O {[%emt 0:00:16] C77: Ruy Lopez: 3...a6 4 Ba4 Nf6, unusual lines.} 7. d3 {[%emt 0:00:14] 7.d3 has lost popularity.} d6 {[%emt 0:00:05]} 8. Bxc6 {[%emt 0:00:41]} bxc6 {[%emt 0:00:01]} 9. Bg5 {[%emt 0:00:03] [#]} h6 $146 {[%emt 0:00:02]} ({Predecessor:} 9... Rb8 10. h3 Re8 11. Rb1 h6 12. Bh4 Bd4 13. Nxd4 exd4 14. Ne2 c5 15. f4 Qe7 {½-½ (28) Antz,W-Wessel,R freechess.de 2020}) 10. Bh4 {[%emt 0:00:01]} (10. Be3 $11) 10... Rb8 {[%emt 0:00:06]} (10... g5 $15 {should be considered.} 11. Bg3 Bg4) 11. h3 {[%emt 0:00:24]} Re8 {[%emt 0:00:11]} ({But not} 11... Rxb2 12. Na4 Rb5 13. c4 $16) 12. b3 {[%emt 0:00:36]} Bd7 {[%emt 0:00:08]} 13. Qd2 {[%emt 0:00:50]} Kh7 {[%emt 0:00:26]} 14. Rfe1 {[%emt 0:00:23]} (14. Na4 $11 Ba7 15. g4) 14... Bb4 {[%emt 0:00:10]} (14... g5 $1 $15 15. Bg3 (15. Bxg5 $2 hxg5 16. Nxg5+ Kg8 $19) 15... Nh5) 15. a3 $11 {[%emt 0:00:02]} Bxc3 {[%emt 0:00:03]} 16. Qxc3 {[%emt 0:00:00]} g5 {[%emt 0:00:14]} 17. Bg3 {[%emt 0:00:01]} Nh5 {[%emt 0:00:01]} (17... c5 $11 {keeps the balance.}) 18. d4 {[%emt 0:00:07]} (18. Qc4 $16) 18... f6 {[%emt 0:00:12]} 19. Rad1 {[%emt 0:00:08][%cal Rd4e5]} Qe7 {[%emt 0:00:02]} 20. Qd3 {[%emt 0:00:28] Threatens to win with dxe5.} Bc8 {[%emt 0:00:11]} 21. Nh2 {[%emt 0:00:10][%cal Bf3h2,Bh2f1,Bf1e3][%mdl 32]} Nf4 {[%emt 0:00:09]} 22. Qc4 {[%emt 0:00:08]} Rb6 {[%emt 0:00:07]} 23. Nf1 {[%emt 0:00:06]} Be6 {[%emt 0:00:26]} 24. Qc3 {[%emt 0:00:00]} Qf7 {[%emt 0:00:03]} 25. Ne3 {[%emt 0:00:09]} Rg8 {[%emt 0:00:49]} 26. f3 {[%emt 0:00:05]} exd4 {[%emt 0:00:23]} ({Black should try} 26... h5 $14) 27. Qxd4 {[%emt 0:00:06]} c5 {[%emt 0:00:00]} 28. Qd2 {[%emt 0:00:03]} Ng6 {[%emt 0:00:04]} 29. b4 {[%emt 0:00:18]} cxb4 {[%emt 0:00:05]} 30. axb4 {[%emt 0:00:01]} Ne5 {[%emt 0:00:01]} 31. c3 {[%emt 0:00:18]} Nc4 {[%emt 0:00:04]} 32. Nxc4 {[%emt 0:00:01]} Bxc4 {[%emt 0:00:01]} 33. Qe3 {[%emt 0:00:08]} Re8 {[%emt 0:00:04][%cal Oa6a5]} 34. Qf2 {[%emt 0:00:06]} (34. Qd4 {is more complex.} Rg8 35. Ra1 Bb5 36. Qd5) 34... Rb5 {[%emt 0:00:04]} 35. Ra1 {[%emt 0:00:03]} Rbb8 {[%emt 0:00:06]} 36. Kh2 {[%emt 0:00:01]} Re7 {[%emt 0:00:02]} 37. Qd4 {[%emt 0:00:09]} Rbe8 {[%emt 0:00:01]} 38. Kg1 {[%emt 0:00:03]} f5 {[%emt 0:00:03]} (38... h5 $11) 39. exf5 $16 {[%emt 0:00:03] White is more active.} Re2 {[%emt 0:00:07]} 40. Rxe2 {[%emt 0:00:04]} Bxe2 {[%emt 0:00:02]} 41. f6 {[%emt 0:00:07]} (41. Re1 $18) 41... Kg6 {[%emt 0:00:02] [#]} 42. Re1 $1 {[%emt 0:00:06][%cal Oe1e2] Strongly threatening Rxe2!} Qxf6 {[%emt 0:00:01]} 43. Qd2 {[%emt 0:00:02]} Bb5 {[%emt 0:00:03]} 44. Rxe8 Bxe8 {[%emt 0:00:01][%mdl 4096] Endgame KQB-KQB} 45. Bf2 {[%emt 0:00:03]} Qf5 {[%emt 0:00:01]} 46. Bd4 {[%emt 0:00:01]} (46. Qa2 $16 {Black must now prevent Qg8+.} Bf7 47. Qxa6) 46... Qb1+ $11 {[%emt 0:00:04]} 47. Kh2 {[%emt 0:00:01]} Qf5 {[%emt 0:00:02]} 48. Qe1 Kf7 {[%emt 0:00:01]} ({Don't do} 48... Bf7 49. Qe7 $16) 49. Qe2 {[%emt 0:00:03] With the idea Qc4+.} Bb5 {[%emt 0:00:01] Inhibits Qc4+.} 50. Qe1 {[%emt 0:00:02]} Qf4+ {[%emt 0:00:01]} 51. Kh1 {[%emt 0:00:02]} Qf5 {[%emt 0:00:00]} 52. Kg1 {[%emt 0:00:01]} Qd3 {[%emt 0:00:13]} 53. Kh2 {[%emt 0:00:03]} Qf5 {[%emt 0:00:02]} 54. Kh1 {[%emt 0:00:03]} Qd3 {[%emt 0:00:01]} 55. Qg3 {[%emt 0:00:03]} Qb1+ {[%emt 0:00:02]} 56. Kh2 {[%emt 0:00:01]} Qf5 {[%emt 0:00:01]} 57. Be3 {[%emt 0:00:01]} Qe5 {[%emt 0:00:08]} 58. f4 {[%emt 0:00:01]} gxf4 {[%emt 0:00:01]} 59. Bxf4 {[%emt 0:00:01]} Qf6 {[%emt 0:00:02]} 60. Qe3 {[%emt 0:00:02]} h5 {[%emt 0:00:02]} 61. Bg3 {[%emt 0:00:09][%cal Oc3c4]} Qf5 {[%emt 0:00:06]} 62. Qd4 {[%emt 0:00:02]} Bc6 {[%emt 0:00:05] The position is equal.} 63. Qc4+ {[%emt 0:00:01]} Qd5 {[%emt 0:00:01]} 64. Qxd5+ {[%emt 0:00:03]} Bxd5 {[%emt 0:00:02]} 65. Bf2 {[%emt 0:00:02]} Bc6 {[%emt 0:00:01]} 66. Bg3 Bd5 {[%emt 0:00:00]} 67. Bf2 {[%emt 0:00:01]} Bc6 {[%emt 0:00:01]} 68. Bg3 {[%emt 0:00:01]} Bd5 {[%emt 0:00:01] Blacks defense is rewarded with a draw.  Weighted Error Value: White=0.17 (very precise) /Black=0.16 (very precise)} 1/2-1/2

[Event "Super United Croatia GCT Blitz 2022"]
[Site "Zagreb"]
[Date "2022.07.23"]
[Round "6"]
[White "Saric, Ivan"]
[Black "So, Wesley"]
[Result "0-1"]
[ECO "C65"]
[WhiteElo "2680"]
[BlackElo "2773"]
[Annotator "TA"]
[PlyCount "142"]
[EventDate "2022.07.20"]
[EventType "tourn"]
[EventCountry "CRO"]
[SourceTitle "playchess.com"]
[Source "ChessBase"]
[SourceQuality "1"]
[TimeControl "300+2"]

{[%evp 9,142,9,6,7,5,13,2,0,0,-10,-9,0,50,49,45,15,15,8,81,35,79,42,37,35,35,36,41,44,44,36,36,36,37,36,36,36,36,22,23,23,26,10,22,17,17,19,13,18,15,0,13,-8,0,-43,-44,-44,-44,-44,-44,-44,-43,-43,-15,-15,-15,-15,-8,-8,-8,-8,-8,-69,-49,-20,0,-44,-6,-106,0,0,0,-1182,-1169,-1119,-981,-1153,-835,-1324,-1189,-859,-8,-8,0,0,0,0,0,0,0,0,0,0,0,0,0,0,0,0,0,0,0,-29972,-29973,-29973,-29972,-29974,-29975,-29975,-29976,-29976,-29977,-29981,-29982,-29982,-29983,-29983,-29984,-29988,-29983,-29991,-29989,-29989,-29990,-29996,-1719]} 1. e4 {[%emt 0:00:01]} e5 {[%emt 0:00:01]} 2. Nf3 {[%emt 0:00:01]} Nc6 {[%emt 0:00:01]} 3. Bb5 {[%emt 0:00:01]} Nf6 {[%emt 0:00:01]} 4. d3 {[%emt 0:00:03]} Bc5 {[%emt 0:00:01]} 5. Bg5 {[%emt 0:00:04]} h6 {[%emt 0:00:07]} 6. Bh4 {[%emt 0:00:01] C65: Ruy Lopez: Berlin Defence (3...Nf6), unusual lines and 4 0-0 Bc5.} Ne7 $5 {[%emt 0:00:01][%mdl 4] Leaves trodden paths.} 7. Bxf6 {[%emt 0:00:08]} ({Don't play} 7. Nxe5 Bd4 8. Bxf6 gxf6 $15) 7... gxf6 {[%emt 0:00:04]} 8. d4 {[%emt 0:00:10] The position is equal.} exd4 {[%emt 0:00:10] [#]} 9. O-O $146 {[%emt 0:00:02]} ({Predecessor:} 9. Nxd4 c6 10. Nb3 Bb6 11. Be2 Rg8 12. g3 a5 13. a4 d5 14. Nc3 Be6 15. exd5 Nxd5 {½-½ (41) Spirin,A (2073)-Lukashin,A (1927) LSS email 2018}) 9... c6 {[%emt 0:00:03]} 10. Bc4 {[%emt 0:00:01]} O-O {[%emt 0:00:14]} ({Better is} 10... Rg8 $11) 11. Nxd4 {[%emt 0:00:31]} d6 {[%emt 0:00:09]} 12. c3 {[%emt 0:00:28]} f5 {[%emt 0:00:08]} 13. Nd2 {[%emt 0:00:09]} Kg7 {[%emt 0:00:51]} (13... Bxd4 $11 14. cxd4 fxe4) 14. Bd3 {[%emt 0:00:16]} (14. Bb3 $16) 14... f4 {[%emt 0:00:21]} 15. N2f3 {[%emt 0:00:48]} Ng6 {[%emt 0:00:06]} 16. Nf5+ {[%emt 0:00:21]} Bxf5 {[%emt 0:00:35]} 17. exf5 {[%emt 0:00:01]} Ne5 {[%emt 0:00:02]} 18. b4 {[%emt 0:00:30]} Bb6 {[%emt 0:00:07]} 19. a4 {[%emt 0:00:16]} a6 {[%emt 0:00:47]} 20. Nxe5 {[%emt 0:00:19]} dxe5 {[%emt 0:00:00]} 21. Qe2 {[%emt 0:00:02]} Qf6 {[%emt 0:00:11]} 22. Be4 {[%emt 0:00:01]} Rfd8 {[%emt 0:00:09]} 23. Rfd1 {[%emt 0:00:10]} Rxd1+ 24. Rxd1 Rd8 {Against Rd7} 25. Rxd8 {[%emt 0:00:10]} Qxd8 $11 {[%emt 0:00:24][%mdl 4096] Endgame KQB-KQB} 26. g3 {[%emt 0:00:07]} fxg3 {[%emt 0:00:12]} 27. hxg3 {[%emt 0:00:02]} Qg5 {[%emt 0:00:02]} 28. Kg2 {[%emt 0:00:06]} h5 {[%emt 0:00:03]} 29. Bd3 {[%emt 0:00:31]} Kf6 {[%emt 0:00:14]} 30. Kh3 {[%emt 0:00:32]} h4 {[%emt 0:00:22]} 31. Qg4 {[%emt 0:00:06]} Bxf2 {[%emt 0:00:16]} 32. Qxh4 {[%emt 0:00:03]} Qxh4+ {[%emt 0:00:08]} 33. gxh4 $15 {[%emt 0:00:01] KB-KB} Be1 {[%emt 0:00:01]} 34. b5 {[%emt 0:00:03]} cxb5 {[%emt 0:00:06]} 35. axb5 {[%emt 0:00:00]} a5 {[%emt 0:00:00]} 36. c4 $1 {[%emt 0:00:03]} Bf2 {[%emt 0:00:06]} 37. Bc2 $1 {[%emt 0:00:03]} Ke7 {[%emt 0:00:06]} 38. h5 {[%emt 0:00:01]} Be3 {[%emt 0:00:01]} 39. Kg4 {[%emt 0:00:02]} Kd6 {[%emt 0:00:02]} 40. Kf3 {[%emt 0:00:02]} ({White should try} 40. c5+ $11 Kxc5 41. f6) 40... Bf4 {[%emt 0:00:04] Black is more active.} 41. Ke4 {[%emt 0:00:04][%cal Oc4c5]} Kc5 {[%emt 0:00:00]} 42. Kd3 {[%emt 0:00:02]} Kb4 {[%emt 0:00:01]} 43. f6 {[%emt 0:00:02] [#]} (43. Ke4 $11 {remains equal.}) 43... b6 {[%emt 0:00:05]} ({Black should play} 43... Bg5 $1 $17 44. Ke4 Bxf6) 44. Bb1 $11 {[%emt 0:00:02]} a4 {[%emt 0:00:01]} 45. Kc2 $2 {[%emt 0:00:02][%mdl 8192]} (45. Ke4 $11) 45... Bg5 $19 {[%emt 0:00:02]} 46. Ba2 {[%emt 0:00:01]} Kc5 {[%emt 0:00:01]} 47. Kd3 {[%emt 0:00:01]} Bxf6 {[%emt 0:00:02] ...Bh8 is the strong threat.} 48. h6 {[%emt 0:00:01]} Bh8 {[%emt 0:00:02] Threatens to win with ...f5.} 49. Ke4 {[%emt 0:00:01] [#]} a3 $2 {[%emt 0:00:03]} (49... f6 $1 $19 50. h7 f5+ 51. Kxf5 Kd4) 50. h7 {[%emt 0:00:01]} Bg7 {[%emt 0:00:01]} (50... f6 $5) 51. Bb3 {[%emt 0:00:03]} Bh8 {[%emt 0:00:03]} 52. Ba2 $1 {[%emt 0:00:01]} Kd6 {[%emt 0:00:04]} (52... f6 $5) 53. Kf5 {[%emt 0:00:01]} Bg7 {[%emt 0:00:02]} (53... Kc5 $5 54. Ke4 $11) 54. Ke4 {[%emt 0:00:04]} Kc5 {[%emt 0:00:02]} 55. Bb3 {[%emt 0:00:01]} Kb4 {[%emt 0:00:03]} (55... Bh8 $5) 56. Ba2 {[%emt 0:00:01]} Bh8 {[%emt 0:00:01]} (56... Kc5 $5) 57. Kf5 {[%emt 0:00:02]} Kc5 {[%emt 0:00:03] aiming for ...Kd4.} (57... Bg7 $5) 58. Ke4 {[%emt 0:00:01]} f5+ {[%emt 0:00:01]} (58... f6 $5) 59. Kxf5 {[%emt 0:00:02]} Kd4 60. Bb1 $2 {[%emt 0:00:09][%mdl 8192]} (60. Bb3 $11) 60... e4 {[%emt 0:00:02] Black mates.} 61. c5 {[%emt 0:00:01]} e3 {[%emt 0:00:00]} 62. cxb6 {[%emt 0:00:03]} e2 {[%emt 0:00:01]} 63. b7 {[%emt 0:00:01]} e1=Q {[%emt 0:00:01]} 64. b8=Q {[%emt 0:00:01]} Qxb1+ {[%emt 0:00:01]} 65. Kg4 {[%emt 0:00:05]} Qe4+ {[%emt 0:00:01]} 66. Kh3 {[%emt 0:00:02]} Qxh7+ {[%emt 0:00:03]} 67. Kg2 {[%emt 0:00:01]} Qe4+ {[%emt 0:00:01]} 68. Kf1 {[%emt 0:00:04]} Qf3+ {[%emt 0:00:04]} 69. Ke1 {[%emt 0:00:00]} Bf6 {[%emt 0:00:04]} 70. Qd6+ {[%emt 0:00:01]} Kc4 {[%emt 0:00:03]} 71. b6 {[%emt 0:00:03]} Bc3+ {[%emt 0:00:01] Weighted Error Value: White=0.49/Black=0.22 (precise)} 0-1